{"text_format":"3","workbook":"xlsx","n_sheets":2,"sheets":["Faktura za naplatu","Podešavanje preduzeća"],"not_rendered":{"images":1,"defined_names":27},"read":"whole","date_system":"1900"}

{"sheet":"Faktura za naplatu","index":0,"n_rows":35,"n_cols":7,"rows_kept":35,"merged":[[1,1,1,2],[1,3,2,4],[1,6,2,6],[3,3,3,4],[4,3,4,4],[5,3,5,4],[23,1,23,3],[24,1,24,3],[25,1,25,3],[26,1,26,3],[34,1,34,4]]}
[null,"FAKTURA","0005"]
[null,{"$f":"TODAY()","v":"2018-07-13"},null,{"$f":"UkupnaVrednostFakture","v":7965},null," ","Podešavanje preduzeća"]
[null,"DOSPEVA ZA NAPLATU:",{"$f":"TODAY()+15","v":"2018-07-28"},null,null," "]
[null,"MIRJANA RALEVIĆ",null,"ADVENTURE WORKS"]
[null,"Fabrikam, Inc.",null,"Ulica Javora 23456"]
[null,"Prva ulica 1234",null,"Lipov Gaj, 09876"]
[null,"Šumice, PO 12345"]
[null,"KOLIČINA","DETALJI","CENA PO JEDINICI","ZBIR REDA"]
[null,2,"Alati",{"v":1495,"d":"1,495.00"},{"$f":"IFERROR(DetaljiFakture[[#This Row],[CENA PO JEDINICI]]*DetaljiFakture[[#This Row],[KOLIČINA]],\"\")","v":{"v":2990,"d":"2,990.00"}}]
[null,5,"Podloške",{"v":995,"d":"995.00"},{"$f":"IFERROR(DetaljiFakture[[#This Row],[CENA PO JEDINICI]]*DetaljiFakture[[#This Row],[KOLIČINA]],\"\")","v":{"v":4975,"d":"4,975.00"}}]
[{"$nulls":4},{"$f":"IFERROR(DetaljiFakture[[#This Row],[CENA PO JEDINICI]]*DetaljiFakture[[#This Row],[KOLIČINA]],\"\")","v":0}]
[{"$nulls":4},{"$f":"IFERROR(DetaljiFakture[[#This Row],[CENA PO JEDINICI]]*DetaljiFakture[[#This Row],[KOLIČINA]],\"\")","v":0}]
[{"$nulls":4},{"$f":"IFERROR(DetaljiFakture[[#This Row],[CENA PO JEDINICI]]*DetaljiFakture[[#This Row],[KOLIČINA]],\"\")","v":0}]
[{"$nulls":4},{"$f":"IFERROR(DetaljiFakture[[#This Row],[CENA PO JEDINICI]]*DetaljiFakture[[#This Row],[KOLIČINA]],\"\")","v":0}]
[{"$nulls":4},{"$f":"IFERROR(DetaljiFakture[[#This Row],[CENA PO JEDINICI]]*DetaljiFakture[[#This Row],[KOLIČINA]],\"\")","v":0}]
[{"$nulls":4},{"$f":"IFERROR(DetaljiFakture[[#This Row],[CENA PO JEDINICI]]*DetaljiFakture[[#This Row],[KOLIČINA]],\"\")","v":0}]
[{"$nulls":4},{"$f":"IFERROR(DetaljiFakture[[#This Row],[CENA PO JEDINICI]]*DetaljiFakture[[#This Row],[KOLIČINA]],\"\")","v":0}]
[{"$nulls":4},{"$f":"IFERROR(DetaljiFakture[[#This Row],[CENA PO JEDINICI]]*DetaljiFakture[[#This Row],[KOLIČINA]],\"\")","v":0}]
[{"$nulls":4},{"$f":"IFERROR(DetaljiFakture[[#This Row],[CENA PO JEDINICI]]*DetaljiFakture[[#This Row],[KOLIČINA]],\"\")","v":0}]
[{"$nulls":4},{"$f":"IFERROR(DetaljiFakture[[#This Row],[CENA PO JEDINICI]]*DetaljiFakture[[#This Row],[KOLIČINA]],\"\")","v":0}]
[{"$nulls":4},{"$f":"IFERROR(DetaljiFakture[[#This Row],[CENA PO JEDINICI]]*DetaljiFakture[[#This Row],[KOLIČINA]],\"\")","v":0}]
[{"$nulls":4},{"$f":"IFERROR(DetaljiFakture[[#This Row],[CENA PO JEDINICI]]*DetaljiFakture[[#This Row],[KOLIČINA]],\"\")","v":0}]
[{"$nulls":4},{"$f":"IFERROR(DetaljiFakture[[#This Row],[CENA PO JEDINICI]]*DetaljiFakture[[#This Row],[KOLIČINA]],\"\")","v":0}]
[null,"Popust"]
[null,"Ukupna neto vrednost",null,null,{"$f":"SUM(DetaljiFakture[ZBIR REDA])-E24","v":{"v":7965,"d":"7,965.00 din."}}]
[null,"Porez"]
[null,{"$f":"\"ZBIR U \" & REPT(PodešavanjePreduzeća_OznakaValute,LEN(PodešavanjePreduzeća_OznakaValute)>0)","v":"ZBIR U DIN"},null,null,{"$f":"IFERROR(E25+E26, \"\")","v":{"v":7965,"d":"7,965.00 din."}}]
[null,"DETALJI PLAĆANJA",null,null,"DRUGE INFORMACIJE"]
[null,"Ime korisnika:",{"$f":" PodešavanjePreduzeća_ImeKorisnikaBanke","v":"Adventure Works"},null,{"$f":"IFERROR(PodešavanjePreduzeća_VašeIme,\"\")","v":""}]
[null,"Ime banke:",{"$f":"PodešavanjePreduzeća_ImeBanke","v":"Banka Woodgrove"},null,{"$f":"IFERROR(\"Telefon: \" & PodešavanjePreduzeća_Telefon,\"\")","v":"Telefon: 025-555-0150"}]
[null,"Adresa banke:",{"$f":"PodešavanjePreduzeća_AdresaBanke","v":"Glavna ulica 234, Lipov Gaj 09876"},null,{"$f":"IFERROR(\"Faksimil: \" & PodešavanjePreduzeća_Faks,\"\")","v":"Faksimil: 025-555-0151"}]
[null,"Broj računa:",{"$f":"PodešavanjePreduzeća_BankovniRačun","v":1234567},null,{"$f":"IFERROR(PodešavanjePreduzeća_URL,\"\")","v":"Adventure-Works.com"}]
[null,"Identifikacioni broj (SWIFT kôd):",{"$f":"PodešavanjePreduzeća_IdentifikacijaBanke","v":9876543210},null,{"$f":"IFERROR(PodešavanjePreduzeća_AdresaEpošte,\"\")","v":"Accounting@Adventure-Works.com"}]
[null,"Referenca za plaćanje:",{"$f":"BrojFaktureZaPrikaz","v":"0005"},null,{"$f":"IFERROR(IF(LEN(Client_PO),\"Contract/PO: \" & Client_PO,\"\"),\"\")","v":""}]
[null,{"$f":"UPPER(\"Plaćanje bi trebalo izvršiti bankovnim transferom ili čekom naslovljenim na \" & PodešavanjePreduzeća_PrimalacČeka& \".\")","v":"PLAĆANJE BI TREBALO IZVRŠITI BANKOVNIM TRANSFEROM ILI ČEKOM NASLOVLJENIM NA ADVENTURE WORKS."}]

{"sheet":"Podešavanje preduzeća","index":1,"n_rows":20,"n_cols":5,"rows_kept":20}
[null,"PODEŠAVANJE PREDUZEĆA"]
[null,"DETALJI O PREDUZEĆU KOJE IZDAJE FAKTURU","VREDNOST",null,"Faktura za naplatu"]
[null,"Ime","Predrag Kojić"]
[null,"Ime preduzeća","ADVENTURE WORKS"]
[null,"Red za adresu 1","Ulica Javora 23456"]
[null,"Red za adresu 2","Lipov Gaj, 09876"]
[null,"Red za adresu 3"]
[null,"Red za adresu 4"]
[null,"Red za adresu 5"]
[null,"Telefon","025-555-0150"]
[null,"Faksimil","025-555-0151"]
[null,"Veb sajt","Adventure-Works.com"]
[null,"Adresa e-pošte","Accounting@Adventure-Works.com"]
[null,"Oznaka valute","DIN"]
[null,"Ime korisnika za bankovni transfer","Adventure Works"]
[null,"Ime banke","Banka Woodgrove"]
[null,"Adresa banke","Glavna ulica 234, Lipov Gaj 09876"]
[null,"Broj računa",1234567]
[null,"Identifikacioni broj (SWIFT kôd)",9876543210]
[null,"Neka svi čekovi glase na","Adventure Works"]